[Event "Early-Titled-Tuesday-Blitz-September-05-2023"]
[Site "Chess.com"]
[Date "2023.09.05"]
[Round "4"]
[White "Agibileg"]
[Black "merinasian"]
[Result "1-0"]
[WhiteElo "2667"]
[BlackElo "2439"]
[TimeControl "180+1"]
[EndTime "8:36:04 PDT"]
[Termination "Agibileg won by resignation"]

1. d4 {[%clk 0:03:00.4]} 1... Nf6 {[%clk 0:02:55.5]} 2. c4 {[%clk 0:03:00.4]}
2... e6 {[%clk 0:02:55.2]} 3. Nc3 {[%clk 0:03:00.1]} 3... Bb4 {[%clk 0:02:53.6]}
4. a3 {[%clk 0:02:59.2]} 4... Bxc3+ {[%clk 0:02:53.5]} 5. bxc3 {[%clk
0:03:00.1]} 5... d6 {[%clk 0:02:51.1]} 6. f3 {[%clk 0:03:00.4]} 6... O-O {[%clk
0:02:46.3]} 7. e4 {[%clk 0:03:00.3]} 7... e5 {[%clk 0:02:46.8]} 8. Bd3 {[%clk
0:03:00.8]} 8... c5 {[%clk 0:02:43.9]} 9. Ne2 {[%clk 0:03:00.9]} 9... Nc6 {[%clk
0:02:43.5]} 10. O-O {[%clk 0:02:59.1]} 10... b6 {[%clk 0:02:28.6]} 11. Bg5
{[%clk 0:02:57.3]} 11... h6 {[%clk 0:02:28.1]} 12. Bh4 {[%clk 0:02:56.9]} 12...
g5 {[%clk 0:02:23.6]} 13. Bf2 {[%clk 0:02:54.5]} 13... Ba6 {[%clk 0:02:12.9]}
14. f4 {[%clk 0:02:52.6]} 14... exf4 {[%clk 0:02:09.4]} 15. Nxf4 {[%clk
0:02:52.5]} 15... Ne7 {[%clk 0:01:38.8]} 16. Nh5 {[%clk 0:02:47.7]} 16... Nxh5
{[%clk 0:01:38.3]} 17. Qxh5 {[%clk 0:02:48.6]} 17... Kg7 {[%clk 0:01:38.7]} 18.
h4 {[%clk 0:02:38.5]} 18... Ng6 {[%clk 0:01:37.6]} 19. Bg3 {[%clk 0:02:06.4]}
19... Qe7 {[%clk 0:01:21]} 20. e5 {[%clk 0:01:58.3]} 20... dxe5 {[%clk
0:01:18.8]} 21. dxe5 {[%clk 0:01:54.5]} 21... Rad8 {[%clk 0:01:11.4]} 22. Bf5
{[%clk 0:01:38.3]} 22... Bxc4 {[%clk 0:00:49.3]} 23. Rf2 {[%clk 0:01:36.5]}
23... Be6 {[%clk 0:00:46.5]} 24. Be4 {[%clk 0:01:32.4]} 24... gxh4 {[%clk
0:00:40.2]} 25. Rf6 {[%clk 0:01:32.1]} 25... hxg3 {[%clk 0:00:22.4]} 26. Bxg6
{[%clk 0:01:31.9]} 26... Rd5 {[%clk 0:00:11.1]} 27. Be4 {[%clk 0:01:31.4]} 27...
Rxe5 {[%clk 0:00:10.6]} 28. Qxh6+ {[%clk 0:01:31.5]} 1-0

[Event "Early-Titled-Tuesday-Blitz-September-05-2023"]
[Site "Chess.com"]
[Date "2023.09.05"]
[Round "4"]
[White "Actuary44"]
[Black "Al_Shima"]
[Result "1-0"]
[WhiteElo "2534"]
[BlackElo "2334"]
[TimeControl "180+1"]
[EndTime "8:36:15 PDT"]
[Termination "Actuary44 won by checkmate"]

1. e4 {[%clk 0:03:00.9]} 1... c5 {[%clk 0:02:58.1]} 2. d4 {[%clk 0:03:01.1]}
2... cxd4 {[%clk 0:02:58.1]} 3. c3 {[%clk 0:03:01.6]} 3... d3 {[%clk 0:02:57.6]}
4. Bxd3 {[%clk 0:03:01.3]} 4... Nc6 {[%clk 0:02:57.5]} 5. f4 {[%clk 0:03:02]}
5... d5 {[%clk 0:02:55]} 6. e5 {[%clk 0:03:01.3]} 6... Nh6 {[%clk 0:02:50.1]} 7.
Nf3 {[%clk 0:03:01.6]} 7... Bf5 {[%clk 0:02:49.7]} 8. O-O {[%clk 0:03:01.7]}
8... Bxd3 {[%clk 0:02:49.5]} 9. Qxd3 {[%clk 0:03:02.6]} 9... e6 {[%clk
0:02:49.9]} 10. Kh1 {[%clk 0:03:02.6]} 10... Bc5 {[%clk 0:02:47.3]} 11. Be3
{[%clk 0:03:00.6]} 11... Bxe3 {[%clk 0:02:46.1]} 12. Qxe3 {[%clk 0:03:01.5]}
12... Nf5 {[%clk 0:02:45.5]} 13. Qd3 {[%clk 0:02:59.1]} 13... h5 {[%clk
0:02:45.2]} 14. Nbd2 {[%clk 0:02:56.6]} 14... h4 {[%clk 0:02:40.1]} 15. Nb3
{[%clk 0:02:55]} 15... Qb6 {[%clk 0:02:38.3]} 16. Nbd4 {[%clk 0:02:50.1]} 16...
Ncxd4 {[%clk 0:02:38.1]} 17. Nxd4 {[%clk 0:02:45.9]} 17... Nxd4 {[%clk
0:02:37.7]} 18. cxd4 {[%clk 0:02:42.2]} 18... Rc8 {[%clk 0:02:28.8]} 19. f5
{[%clk 0:02:39.2]} 19... exf5 {[%clk 0:02:22]} 20. Qxf5 {[%clk 0:02:32.4]} 20...
Qe6 {[%clk 0:02:20.1]} 21. Qg5 {[%clk 0:02:18]} 21... h3 {[%clk 0:02:18.6]} 22.
Qxg7 {[%clk 0:01:48.5]} 22... hxg2+ {[%clk 0:02:17.8]} 23. Qxg2 {[%clk
0:01:48.6]} 23... Rh6 {[%clk 0:02:05]} 24. Qg8+ {[%clk 0:01:30.5]} 24... Ke7
{[%clk 0:02:04.3]} 25. Qg5+ {[%clk 0:01:22.1]} 25... Kd7 {[%clk 0:01:57.6]} 26.
Rf2 {[%clk 0:00:57.9]} 26... Rg6 {[%clk 0:01:46.5]} 27. Qf4 {[%clk 0:00:57.3]}
27... Rf8 {[%clk 0:01:36.4]} 28. Raf1 {[%clk 0:00:56.4]} 28... Rg4 {[%clk
0:01:26.4]} 29. Qc1 {[%clk 0:00:52]} 29... Rxd4 {[%clk 0:01:22.7]} 30. Qc5
{[%clk 0:00:51.7]} 30... Qg4 {[%clk 0:00:58.7]} 31. Rxf7+ {[%clk 0:00:41.2]}
31... Rxf7 {[%clk 0:00:55.6]} 32. Rxf7+ {[%clk 0:00:42.1]} 32... Ke6 {[%clk
0:00:53]} 33. Qe7# {[%clk 0:00:41.7]} 1-0

[Event "Early-Titled-Tuesday-Blitz-September-05-2023"]
[Site "Chess.com"]
[Date "2023.09.05"]
[Round "4"]
[White "wild3000"]
[Black "infinitegiantkiller"]
[Result "0-1"]
[WhiteElo "2289"]
[BlackElo "2490"]
[TimeControl "180+1"]
[EndTime "8:36:17 PDT"]
[Termination "infinitegiantkiller won by resignation"]

1. d4 {[%clk 0:02:59.9]} 1... Nf6 {[%clk 0:03:00.4]} 2. c4 {[%clk 0:02:56.8]}
2... e6 {[%clk 0:03:01.2]} 3. Nf3 {[%clk 0:02:54.6]} 3... c5 {[%clk 0:03:01.7]}
4. e3 {[%clk 0:02:52.5]} 4... d5 {[%clk 0:03:00.8]} 5. Nc3 {[%clk 0:02:49.4]}
5... a6 {[%clk 0:03:00.6]} 6. dxc5 {[%clk 0:02:46.1]} 6... Bxc5 {[%clk
0:02:58.4]} 7. a3 {[%clk 0:02:44.4]} 7... O-O {[%clk 0:02:54.6]} 8. b4 {[%clk
0:02:43.8]} 8... Be7 {[%clk 0:02:55]} 9. Bb2 {[%clk 0:02:41.3]} 9... dxc4 {[%clk
0:02:55.3]} 10. Qxd8 {[%clk 0:02:33.3]} 10... Rxd8 {[%clk 0:02:56.2]} 11. Bxc4
{[%clk 0:02:33.4]} 11... b5 {[%clk 0:02:56.7]} 12. Bb3 {[%clk 0:02:28]} 12...
Bb7 {[%clk 0:02:57]} 13. Ke2 {[%clk 0:02:27.3]} 13... Nbd7 {[%clk 0:02:57]} 14.
Rhd1 {[%clk 0:02:24.1]} 14... Nb6 {[%clk 0:02:57.5]} 15. Rxd8+ {[%clk
0:02:17.6]} 15... Rxd8 {[%clk 0:02:58.4]} 16. Rd1 {[%clk 0:02:17.6]} 16... Rxd1
{[%clk 0:02:58.6]} 17. Nxd1 {[%clk 0:02:16.5]} 17... Nfd5 {[%clk 0:02:59.5]} 18.
Nc3 {[%clk 0:02:12.1]} 18... Nxc3+ {[%clk 0:02:59.7]} 19. Bxc3 {[%clk
0:02:12.2]} 19... Bd5 {[%clk 0:03:00.6]} 20. Bxd5 {[%clk 0:02:08.9]} 20... Nxd5
{[%clk 0:03:01.5]} 21. Kd3 {[%clk 0:02:04.2]} 21... f6 {[%clk 0:03:00.2]} 22.
Nd4 {[%clk 0:02:01.2]} 22... Kf7 {[%clk 0:03:00]} 23. Nc6 {[%clk 0:02:00.4]}
23... Bd6 {[%clk 0:02:58.1]} 24. Bd2 {[%clk 0:01:57.7]} 24... Nb6 {[%clk
0:02:54.3]} 25. Bc1 {[%clk 0:01:55.9]} 25... Ke8 {[%clk 0:02:52.6]} 26. g3
{[%clk 0:01:53.7]} 26... Kd7 {[%clk 0:02:52.9]} 27. Nd4 {[%clk 0:01:53.8]} 27...
g6 {[%clk 0:02:53.4]} 28. h4 {[%clk 0:01:54]} 28... e5 {[%clk 0:02:53.8]} 29.
Nb3 {[%clk 0:01:53]} 29... Nc4 {[%clk 0:02:51.4]} 30. e4 {[%clk 0:01:45.5]}
30... Nb6 {[%clk 0:02:46.1]} 31. f4 {[%clk 0:01:41.9]} 31... Nc4 {[%clk
0:02:37.3]} 32. Nd2 {[%clk 0:01:33.9]} 32... Nxd2 {[%clk 0:02:36.1]} 33. Bxd2
{[%clk 0:01:34]} 33... h5 {[%clk 0:02:31]} 34. Ke3 {[%clk 0:01:33.2]} 34... Ke6
{[%clk 0:02:29]} 35. Kf3 {[%clk 0:01:31.5]} 35... f5 {[%clk 0:02:27]} 36. Bc3
{[%clk 0:01:25.1]} 36... exf4 {[%clk 0:02:17.6]} 37. gxf4 {[%clk 0:01:26]} 37...
fxe4+ {[%clk 0:02:18.5]} 38. Kxe4 {[%clk 0:01:26]} 38... Be7 {[%clk 0:02:19.4]}
39. Be1 {[%clk 0:01:18.3]} 39... Bf6 {[%clk 0:02:19.2]} 40. Bd2 {[%clk
0:01:02.9]} 40... Bb2 {[%clk 0:02:17.2]} 41. Be1 {[%clk 0:01:03.1]} 41... Bxa3
{[%clk 0:02:15.8]} 42. Bc3 {[%clk 0:01:00]} 42... Bc1 {[%clk 0:02:15.6]} 43. Be1
{[%clk 0:00:57.8]} 43... Bb2 {[%clk 0:02:15.2]} 44. Bd2 {[%clk 0:00:57.3]} 44...
Bf6 {[%clk 0:02:15.7]} 45. Be1 {[%clk 0:00:57.5]} 45... Be7 {[%clk 0:02:16.4]}
46. Kd4 {[%clk 0:00:43.7]} 46... Kf5 {[%clk 0:02:12.4]} 47. Kd5 {[%clk 0:00:44]}
47... Kxf4 {[%clk 0:02:10.2]} 48. Kc6 {[%clk 0:00:44.2]} 48... Kg4 {[%clk
0:02:10.4]} 49. Kb6 {[%clk 0:00:44]} 49... Bxh4 {[%clk 0:02:10.9]} 50. Bc3
{[%clk 0:00:40.9]} 50... Be7 {[%clk 0:02:07.4]} 51. Kxa6 {[%clk 0:00:40.7]}
51... h4 {[%clk 0:02:07.2]} 52. Kxb5 {[%clk 0:00:39]} 52... Bd6 {[%clk
0:02:04.1]} 53. Kc6 {[%clk 0:00:36.9]} 53... Bf4 {[%clk 0:02:04.3]} 54. b5
{[%clk 0:00:32]} 54... h3 {[%clk 0:02:04.4]} 55. b6 {[%clk 0:00:32.3]} 55... h2
{[%clk 0:02:04.6]} 56. b7 {[%clk 0:00:32.6]} 56... h1=Q+ {[%clk 0:02:05.3]} 57.
Kb6 {[%clk 0:00:33.1]} 57... Qb1+ {[%clk 0:02:05.5]} 58. Ka7 {[%clk 0:00:33]}
58... Qa2+ {[%clk 0:02:05.2]} 59. Kb6 {[%clk 0:00:32.7]} 59... Qb3+ {[%clk
0:02:05.4]} 0-1

[Event "Early-Titled-Tuesday-Blitz-September-05-2023"]
[Site "Chess.com"]
[Date "2023.09.05"]
[Round "4"]
[White "Rutricks"]
[Black "Massakru"]
[Result "1-0"]
[WhiteElo "2643"]
[BlackElo "2426"]
[TimeControl "180+1"]
[EndTime "8:36:20 PDT"]
[Termination "Rutricks won by resignation"]

1. b3 {[%clk 0:02:58.2]} 1... d5 {[%clk 0:02:58.4]} 2. Bb2 {[%clk 0:02:59.1]}
2... c5 {[%clk 0:02:56]} 3. Nf3 {[%clk 0:03:00]} 3... Nc6 {[%clk 0:02:55.9]} 4.
e3 {[%clk 0:02:59.9]} 4... a6 {[%clk 0:02:54.5]} 5. c4 {[%clk 0:02:58.3]} 5...
d4 {[%clk 0:02:53.7]} 6. exd4 {[%clk 0:02:58.8]} 6... cxd4 {[%clk 0:02:53.3]} 7.
d3 {[%clk 0:02:59.7]} 7... g6 {[%clk 0:02:52.2]} 8. a3 {[%clk 0:03:00.6]} 8...
Bg7 {[%clk 0:02:51.6]} 9. g3 {[%clk 0:03:01.1]} 9... e5 {[%clk 0:02:49]} 10. Bg2
{[%clk 0:03:01.6]} 10... Nf6 {[%clk 0:02:45.8]} 11. O-O {[%clk 0:03:02.3]} 11...
O-O {[%clk 0:02:45.8]} 12. b4 {[%clk 0:03:02.2]} 12... Re8 {[%clk 0:02:43.2]}
13. Ng5 {[%clk 0:02:51.7]} 13... h6 {[%clk 0:02:40.5]} 14. Ne4 {[%clk 0:02:52]}
14... Nxe4 {[%clk 0:02:36.9]} 15. Bxe4 {[%clk 0:02:52.9]} 15... Kh7 {[%clk
0:02:34.5]} 16. Nd2 {[%clk 0:02:48.9]} 16... Bh3 {[%clk 0:02:32.2]} 17. Re1
{[%clk 0:02:48.6]} 17... f5 {[%clk 0:02:29.8]} 18. Bd5 {[%clk 0:02:47.8]} 18...
Qd7 {[%clk 0:02:20.4]} 19. Qb3 {[%clk 0:02:42.2]} 19... Ne7 {[%clk 0:02:16.5]}
20. Bh1 {[%clk 0:02:37.6]} 20... f4 {[%clk 0:02:10.4]} 21. b5 {[%clk 0:02:25.5]}
21... a5 {[%clk 0:02:06]} 22. a4 {[%clk 0:02:21.1]} 22... fxg3 {[%clk
0:02:03.5]} 23. hxg3 {[%clk 0:02:20.4]} 23... Rf8 {[%clk 0:01:55.4]} 24. Ba3
{[%clk 0:02:19.1]} 24... Rf7 {[%clk 0:01:46.7]} 25. Nf3 {[%clk 0:02:11.9]} 25...
Qf5 {[%clk 0:01:30.5]} 26. Ra2 {[%clk 0:00:58.7]} 26... Raf8 {[%clk 0:01:28.9]}
27. Bd6 {[%clk 0:00:58.6]} 27... g5 {[%clk 0:00:56.1]} 28. Bxe5 {[%clk
0:00:53.2]} 28... Bxe5 {[%clk 0:00:50.5]} 29. Nxe5 {[%clk 0:00:46.9]} 29... Rg7
{[%clk 0:00:40.2]} 30. Be4 {[%clk 0:00:47.1]} 1-0

[Event "Early-Titled-Tuesday-Blitz-September-05-2023"]
[Site "Chess.com"]
[Date "2023.09.05"]
[Round "4"]
[White "wonderfultime"]
[Black "baki83"]
[Result "1-0"]
[WhiteElo "3002"]
[BlackElo "2829"]
[TimeControl "180+1"]
[EndTime "8:36:22 PDT"]
[Termination "wonderfultime won on time"]

1. d4 {[%clk 0:03:00.9]} 1... d5 {[%clk 0:03:00]} 2. Nf3 {[%clk 0:03:01.6]} 2...
Nf6 {[%clk 0:02:59.6]} 3. Bf4 {[%clk 0:03:02.3]} 3... Bf5 {[%clk 0:02:59.8]} 4.
c4 {[%clk 0:03:02.4]} 4... e6 {[%clk 0:03:00]} 5. Nc3 {[%clk 0:03:02.9]} 5...
Bb4 {[%clk 0:02:45.5]} 6. e3 {[%clk 0:02:57.7]} 6... O-O {[%clk 0:02:43.6]} 7.
Be2 {[%clk 0:02:55.7]} 7... dxc4 {[%clk 0:02:43.5]} 8. Bxc4 {[%clk 0:02:55.7]}
8... c5 {[%clk 0:02:43.3]} 9. O-O {[%clk 0:02:55.5]} 9... Nbd7 {[%clk
0:02:23.7]} 10. Nb5 {[%clk 0:02:42.6]} 10... cxd4 {[%clk 0:01:55.3]} 11. Nbxd4
{[%clk 0:02:41.4]} 11... Bg6 {[%clk 0:01:50.5]} 12. Rc1 {[%clk 0:02:33.9]} 12...
Rc8 {[%clk 0:01:37.3]} 13. a3 {[%clk 0:02:18]} 13... Bc5 {[%clk 0:01:24.5]} 14.
b4 {[%clk 0:02:13.4]} 14... Bb6 {[%clk 0:00:45.9]} 15. Nxe6 {[%clk 0:01:46.4]}
15... fxe6 {[%clk 0:00:42.9]} 16. Bxe6+ {[%clk 0:01:46.9]} 16... Kh8 {[%clk
0:00:43.3]} 17. Rxc8 {[%clk 0:01:46.7]} 17... Qxc8 {[%clk 0:00:43.8]} 18. Ne5
{[%clk 0:01:47.5]} 18... Be8 {[%clk 0:00:29.8]} 19. Qd6 {[%clk 0:01:46.3]} 19...
Qc7 {[%clk 0:00:06.9]} 20. Nxd7 {[%clk 0:01:05.9]} 20... Nxd7 {[%clk 0:00:04.5]}
21. Qxc7 {[%clk 0:01:02.5]} 1-0

[Event "Early-Titled-Tuesday-Blitz-September-05-2023"]
[Site "Chess.com"]
[Date "2023.09.05"]
[Round "4"]
[White "amanjazu"]
[Black "Harry_Rakkel"]
[Result "0-1"]
[WhiteElo "2369"]
[BlackElo "2654"]
[TimeControl "180+1"]
[EndTime "8:36:25 PDT"]
[Termination "Harry_Rakkel won by resignation"]

1. f4 {[%clk 0:03:00.9]} 1... d5 {[%clk 0:02:58.2]} 2. Nf3 {[%clk 0:03:00.7]}
2... g6 {[%clk 0:02:55.2]} 3. g3 {[%clk 0:03:00.7]} 3... Bg7 {[%clk 0:02:54.7]}
4. Bg2 {[%clk 0:03:01.3]} 4... Nf6 {[%clk 0:02:54.1]} 5. O-O {[%clk 0:03:02.2]}
5... O-O {[%clk 0:02:53.5]} 6. d3 {[%clk 0:03:02.5]} 6... c5 {[%clk 0:02:51.8]}
7. Qe1 {[%clk 0:02:53.1]} 7... Nc6 {[%clk 0:02:48.7]} 8. e4 {[%clk 0:02:52.7]}
8... b6 {[%clk 0:02:43.7]} 9. Nc3 {[%clk 0:02:46.3]} 9... e6 {[%clk 0:02:39.5]}
10. Ne5 {[%clk 0:02:33.1]} 10... Bb7 {[%clk 0:02:35.2]} 11. Nxc6 {[%clk
0:02:31.8]} 11... Bxc6 {[%clk 0:02:34.7]} 12. f5 {[%clk 0:02:28.9]} 12... d4
{[%clk 0:02:21.5]} 13. Ne2 {[%clk 0:01:58.2]} 13... exf5 {[%clk 0:02:19.2]} 14.
exf5 {[%clk 0:01:42.7]} 14... Bxg2 {[%clk 0:02:17.5]} 15. Kxg2 {[%clk
0:01:43.6]} 15... Re8 {[%clk 0:02:08.8]} 16. Bg5 {[%clk 0:01:30.2]} 16... Qe7
{[%clk 0:01:48.3]} 17. Ng1 {[%clk 0:00:29.2]} 17... Qb7+ {[%clk 0:01:45.8]} 18.
Nf3 {[%clk 0:00:24.4]} 18... Rxe1 {[%clk 0:01:44.8]} 19. Raxe1 {[%clk
0:00:25.3]} 19... gxf5 {[%clk 0:01:41.8]} 20. Kg1 {[%clk 0:00:23.1]} 20... Re8
{[%clk 0:01:40.1]} 21. Rxe8+ {[%clk 0:00:15.2]} 21... Nxe8 {[%clk 0:01:39.7]}
22. Nh4 {[%clk 0:00:16.1]} 22... Nd6 {[%clk 0:01:38.4]} 23. Bf4 {[%clk
0:00:15.1]} 23... Qd5 {[%clk 0:01:37.1]} 24. Re1 {[%clk 0:00:10.2]} 24... Bf8
{[%clk 0:01:29.1]} 25. Re5 {[%clk 0:00:06.4]} 25... Qxa2 {[%clk 0:01:28.6]} 26.
Nxf5 {[%clk 0:00:05]} 26... Nxf5 {[%clk 0:01:27.7]} 27. Rxf5 {[%clk 0:00:05.9]}
27... Qb1+ {[%clk 0:01:27.8]} 28. Kg2 {[%clk 0:00:06.3]} 28... Qxc2+ {[%clk
0:01:27.9]} 29. Kh3 {[%clk 0:00:07]} 29... Qxd3 {[%clk 0:01:23.1]} 30. Rg5+
{[%clk 0:00:07.2]} 30... Qg6 {[%clk 0:01:23.1]} 0-1

[Event "Early-Titled-Tuesday-Blitz-September-05-2023"]
[Site "Chess.com"]
[Date "2023.09.05"]
[Round "4"]
[White "gm_rashid"]
[Black "Aanna12"]
[Result "1-0"]
[WhiteElo "2392"]
[BlackElo "2024"]
[TimeControl "180+1"]
[EndTime "8:36:25 PDT"]
[Termination "gm_rashid won by resignation"]

1. e4 {[%clk 0:02:56.9]} 1... c5 {[%clk 0:02:57.9]} 2. Nf3 {[%clk 0:02:56.9]}
2... d6 {[%clk 0:02:58.1]} 3. d4 {[%clk 0:02:57.3]} 3... cxd4 {[%clk 0:02:58.4]}
4. Nxd4 {[%clk 0:02:58.2]} 4... Nf6 {[%clk 0:02:58.6]} 5. Nc3 {[%clk 0:02:58.7]}
5... a6 {[%clk 0:02:59]} 6. f3 {[%clk 0:02:59.1]} 6... e5 {[%clk 0:02:58.5]} 7.
Nb3 {[%clk 0:02:59.6]} 7... Be7 {[%clk 0:02:57.4]} 8. Be3 {[%clk 0:03:00.2]}
8... Be6 {[%clk 0:02:56.4]} 9. Qd2 {[%clk 0:03:00.5]} 9... Nbd7 {[%clk 0:02:49]}
10. O-O-O {[%clk 0:02:59.4]} 10... b5 {[%clk 0:02:47.2]} 11. g4 {[%clk
0:02:58.5]} 11... Nb6 {[%clk 0:02:46.2]} 12. g5 {[%clk 0:02:55.9]} 12... Nh5
{[%clk 0:02:46.1]} 13. Nd5 {[%clk 0:02:54.7]} 13... Bxd5 {[%clk 0:02:43.5]} 14.
exd5 {[%clk 0:02:55.6]} 14... Nf4 {[%clk 0:02:33.1]} 15. Bxf4 {[%clk 0:02:45.8]}
15... exf4 {[%clk 0:02:32.9]} 16. h4 {[%clk 0:02:46.3]} 16... O-O {[%clk
0:02:30.7]} 17. Qxf4 {[%clk 0:02:41.6]} 17... Rc8 {[%clk 0:02:14.1]} 18. Nd4
{[%clk 0:02:34.7]} 18... Nxd5 {[%clk 0:02:12]} 19. Qe4 {[%clk 0:02:23.7]} 19...
Nb4 {[%clk 0:01:52.6]} 20. a3 {[%clk 0:02:12.2]} 20... d5 {[%clk 0:01:52.2]} 21.
Qf5 {[%clk 0:02:00.3]} 21... Na2+ {[%clk 0:01:24.8]} 22. Kb1 {[%clk 0:01:58.2]}
22... Nc3+ {[%clk 0:01:19.3]} 23. bxc3 {[%clk 0:01:54.5]} 23... Qa5 {[%clk
0:01:19.1]} 24. Nb3 {[%clk 0:01:28.5]} 24... Qxa3 {[%clk 0:01:09.9]} 25. h5
{[%clk 0:00:47.3]} 25... b4 {[%clk 0:01:07.7]} 26. Bd3 {[%clk 0:00:44.2]} 26...
g6 {[%clk 0:00:52.2]} 27. hxg6 {[%clk 0:00:44.4]} 27... fxg6 {[%clk 0:00:52.5]}
28. Qe6+ {[%clk 0:00:41.5]} 1-0

[Event "Early-Titled-Tuesday-Blitz-September-05-2023"]
[Site "Chess.com"]
[Date "2023.09.05"]
[Round "4"]
[White "OparinGrigoriy"]
[Black "VitaliyBernadskiy"]
[Result "1-0"]
[WhiteElo "2995"]
[BlackElo "2823"]
[TimeControl "180+1"]
[EndTime "8:36:34 PDT"]
[Termination "OparinGrigoriy won on time"]

1. Nf3 {[%clk 0:03:00.9]} 1... Nf6 {[%clk 0:02:58.3]} 2. c4 {[%clk 0:02:58]}
2... g6 {[%clk 0:02:58.8]} 3. g3 {[%clk 0:02:58.1]} 3... Bg7 {[%clk 0:02:59.4]}
4. Bg2 {[%clk 0:02:58.8]} 4... O-O {[%clk 0:02:59.7]} 5. Nc3 {[%clk 0:02:59.6]}
5... d6 {[%clk 0:02:59.7]} 6. d4 {[%clk 0:02:59.6]} 6... c6 {[%clk 0:02:59.9]}
7. O-O {[%clk 0:03:00]} 7... Bf5 {[%clk 0:03:00.3]} 8. Ng5 {[%clk 0:02:56]} 8...
e5 {[%clk 0:02:57.4]} 9. d5 {[%clk 0:02:42.9]} 9... h6 {[%clk 0:02:46.3]} 10.
dxc6 {[%clk 0:02:29.5]} 10... Nxc6 {[%clk 0:02:46.7]} 11. Nge4 {[%clk
0:02:29.9]} 11... Nxe4 {[%clk 0:02:43.4]} 12. Nxe4 {[%clk 0:02:30.8]} 12... Qb6
{[%clk 0:02:01.1]} 13. Be3 {[%clk 0:02:00.3]} 13... Nd4 {[%clk 0:01:20.4]} 14.
Qd2 {[%clk 0:01:59.6]} 14... Rac8 {[%clk 0:00:56.2]} 15. Rac1 {[%clk 0:01:57.6]}
15... Qa6 {[%clk 0:00:49]} 16. b3 {[%clk 0:01:58]} 16... d5 {[%clk 0:00:47.4]}
17. Bxd4 {[%clk 0:01:50.7]} 17... Bxe4 {[%clk 0:00:19.6]} 18. Bxe4 {[%clk
0:01:51]} 18... dxe4 {[%clk 0:00:19.6]} 19. Be3 {[%clk 0:01:51.7]} 19... Rcd8
{[%clk 0:00:19.3]} 20. Qc2 {[%clk 0:01:47.8]} 20... f5 {[%clk 0:00:19.7]} 21.
Rfd1 {[%clk 0:01:48.3]} 21... Qc6 {[%clk 0:00:18.8]} 22. Rxd8 {[%clk 0:01:46]}
22... Rxd8 {[%clk 0:00:19.7]} 23. Rd1 {[%clk 0:01:46.6]} 23... Rxd1+ {[%clk
0:00:16.5]} 24. Qxd1 {[%clk 0:01:47.5]} 24... b6 {[%clk 0:00:16]} 25. Qd8+
{[%clk 0:01:46]} 25... Kf7 {[%clk 0:00:15.4]} 26. h4 {[%clk 0:01:36.9]} 26...
Qf6 {[%clk 0:00:08.8]} 27. Qa8 {[%clk 0:01:22.3]} 27... Qe7 {[%clk 0:00:07.7]}
28. c5 {[%clk 0:01:22.6]} 28... f4 {[%clk 0:00:05.7]} 29. cxb6 {[%clk
0:01:14.1]} 29... fxe3 {[%clk 0:00:02.9]} 30. Qxa7 {[%clk 0:01:12.4]} 30...
exf2+ {[%clk 0:00:03.8]} 31. Kf1 {[%clk 0:01:12.7]} 31... Bf6 {[%clk 0:00:02.2]}
32. b7 {[%clk 0:01:11.1]} 1-0

[Event "Early-Titled-Tuesday-Blitz-September-05-2023"]
[Site "Chess.com"]
[Date "2023.09.05"]
[Round "4"]
[White "platy3"]
[Black "Korchmar_Vasiliy"]
[Result "1-0"]
[WhiteElo "2927"]
[BlackElo "2699"]
[TimeControl "180+1"]
[EndTime "8:36:34 PDT"]
[Termination "platy3 won on time"]

1. e4 {[%clk 0:02:58.5]} 1... c5 {[%clk 0:03:00]} 2. Nf3 {[%clk 0:02:57.8]} 2...
d6 {[%clk 0:03:00.5]} 3. d4 {[%clk 0:02:57.6]} 3... cxd4 {[%clk 0:03:01.4]} 4.
Nxd4 {[%clk 0:02:58.3]} 4... Nf6 {[%clk 0:03:02.1]} 5. Nc3 {[%clk 0:02:58.9]}
5... Nc6 {[%clk 0:03:02.3]} 6. Bg5 {[%clk 0:02:55.5]} 6... Bd7 {[%clk
0:03:02.3]} 7. Nxc6 {[%clk 0:02:49.8]} 7... bxc6 {[%clk 0:02:56.6]} 8. Bc4
{[%clk 0:02:47.9]} 8... e6 {[%clk 0:02:54.3]} 9. Qe2 {[%clk 0:02:47.7]} 9... Qc7
{[%clk 0:02:37.7]} 10. O-O-O {[%clk 0:02:34.6]} 10... Be7 {[%clk 0:02:36.3]} 11.
Rhe1 {[%clk 0:02:05.5]} 11... O-O {[%clk 0:02:25.2]} 12. e5 {[%clk 0:02:02.8]}
12... dxe5 {[%clk 0:02:13.2]} 13. Qxe5 {[%clk 0:02:03.7]} 13... Qb7 {[%clk
0:01:33.5]} 14. Ne4 {[%clk 0:01:59.2]} 14... Ng4 {[%clk 0:00:51.6]} 15. Qd4
{[%clk 0:01:52.3]} 15... Bxg5+ {[%clk 0:00:37.1]} 16. Nxg5 {[%clk 0:01:53.2]}
16... Nf6 {[%clk 0:00:37.9]} 17. Ne4 {[%clk 0:01:36.3]} 17... Nxe4 {[%clk
0:00:20.8]} 18. Qxe4 {[%clk 0:01:06.1]} 18... Rab8 {[%clk 0:00:18.7]} 19. b3
{[%clk 0:01:03]} 19... Rfd8 {[%clk 0:00:14]} 20. Qh4 {[%clk 0:00:54]} 20... Qb4
{[%clk 0:00:11]} 21. Re3 {[%clk 0:00:49]} 1-0

[Event "Early-Titled-Tuesday-Blitz-September-05-2023"]
[Site "Chess.com"]
[Date "2023.09.05"]
[Round "4"]
[White "Bugcrusher"]
[Black "TomsKantans"]
[Result "1-0"]
[WhiteElo "2326"]
[BlackElo "2623"]
[TimeControl "180+1"]
[EndTime "8:36:37 PDT"]
[Termination "Bugcrusher won on time"]

1. d4 {[%clk 0:02:54.6]} 1... Nf6 {[%clk 0:02:59.5]} 2. c4 {[%clk 0:02:54.4]}
2... g6 {[%clk 0:02:47.6]} 3. Nc3 {[%clk 0:02:53.7]} 3... d5 {[%clk 0:02:47.8]}
4. cxd5 {[%clk 0:02:53.3]} 4... Nxd5 {[%clk 0:02:48.7]} 5. e4 {[%clk 0:02:53.6]}
5... Nxc3 {[%clk 0:02:49.3]} 6. bxc3 {[%clk 0:02:54.2]} 6... Bg7 {[%clk
0:02:49.9]} 7. Bc4 {[%clk 0:02:54.1]} 7... c5 {[%clk 0:02:50.1]} 8. Be3 {[%clk
0:02:53.4]} 8... O-O {[%clk 0:02:49.8]} 9. Ne2 {[%clk 0:02:53]} 9... Nc6 {[%clk
0:02:47.3]} 10. Rc1 {[%clk 0:02:52.2]} 10... Qc7 {[%clk 0:02:45.9]} 11. h4
{[%clk 0:02:49.2]} 11... Rd8 {[%clk 0:02:24.2]} 12. h5 {[%clk 0:02:45.3]} 12...
e6 {[%clk 0:00:47.1]} 13. h6 {[%clk 0:02:37.1]} 13... Bh8 {[%clk 0:00:43.8]} 14.
Kf1 {[%clk 0:02:34.1]} 14... b6 {[%clk 0:00:38.5]} 15. Bf4 {[%clk 0:02:31.9]}
15... e5 {[%clk 0:00:32.2]} 16. Bg3 {[%clk 0:02:30]} 16... Qe7 {[%clk
0:00:28.9]} 17. Bd5 {[%clk 0:02:22.6]} 17... Bb7 {[%clk 0:00:23.6]} 18. dxc5
{[%clk 0:01:56]} 18... Qxc5 {[%clk 0:00:20.7]} 19. Qb3 {[%clk 0:01:51.5]} 19...
Qe7 {[%clk 0:00:18.5]} 20. Bh4 {[%clk 0:01:43.2]} 20... Bf6 {[%clk 0:00:17.9]}
21. Bxf7+ {[%clk 0:01:39.8]} 21... Qxf7 {[%clk 0:00:18.8]} 22. Bxf6 {[%clk
0:01:40.1]} 22... Rd2 {[%clk 0:00:19.4]} 23. Rh3 {[%clk 0:01:30.9]} 23... Ba6
{[%clk 0:00:13.4]} 24. Re1 {[%clk 0:01:23.1]} 24... Bc4 {[%clk 0:00:09.7]} 25.
Qa4 {[%clk 0:01:09.7]} 25... b5 {[%clk 0:00:10.1]} 26. Qa6 {[%clk 0:01:08.6]}
26... Qxf6 {[%clk 0:00:10.3]} 27. Rf3 {[%clk 0:01:06.4]} 27... Qxf3 {[%clk
0:00:04.9]} 28. gxf3 {[%clk 0:01:06.2]} 28... Ne7 {[%clk 0:00:04.3]} 29. Qf6
{[%clk 0:01:05]} 1-0